bitfinex/quotes_ETHUSD_20210701
["timestamp","ask_amount","ask_price","bid_price","bid_amount"]
[1625165745817,10.4591,2117.9,2116.8,22.45239]
[1625165745916,10.4591,2117.9,2116.8,25.00492883]
[1625165746022,10.4591,2117.9,2117.2,7.08072]
[1625165746217,2.7,2118.1,2117.2,12.09072]
[1625165747225,7.71,2118.1,2117.2,5.01]
[1625165747321,7.71,2118.1,2116.8,11.99717666]
[1625165747420,0.1,2118.0,2116.8,9.44239]
[1625165747664,12.3025,2118.1,2116.8,9.44239]
[1625165747867,12.3025,2118.1,2116.4,10.4015]
[1625165748018,20.0,2117.7,2116.4,10.4015]
[1625165748170,7.08466,2117.1,2116.4,10.4015]
[1625165748366,12.09466,2117.1,2116.4,10.4015]
[1625165748468,12.09466,2117.1,2116.1,10.5976]
[1625165748620,9.30000424,2117.1,2116.0,0.0103725]
[1625165749224,9.30000424,2117.1,2116.3,7.08439]
[1625165750913,4.29000424,2117.1,2116.3,7.08439]
[1625165751015,5.01,2117.1,2116.3,7.08439]
[1625165751115,7.08425,2117.3,2116.3,7.08439]
[1625165751215,12.09425,2117.3,2116.3,7.14439]
[1625165751318,7.08425,2117.3,2116.3,7.14439]
[1625165751518,66.53464,2117.7,2116.3,12.15439]
[1625165751669,46.1088,2117.7,2116.3,16.44439]
[1625165752017,46.1088,2117.7,2116.3,16.38439]
[1625165752770,35.2598,2117.7,2116.3,24.38439]
[1625165752875,42.34243,2117.7,2117.0,7.08244]
[1625165753027,2.7,2118.1,2117.0,16.93034]
[1625165753123,2.7,2118.1,2117.0,19.92034]
[1625165753224,2.7,2118.1,2117.0,20.07034]
[1625165753371,2.7,2118.1,2117.1,0.14]
[1625165753574,9.9886,2118.2,2117.1,0.14]
[1625165753770,9.9886,2118.2,2117.0,16.09281666]
[1625165754020,9.9886,2118.2,2117.0,24.09281666]
[1625165754126,9.9886,2118.2,2117.4,9.44035]
[1625165754272,5.01,2118.2,2117.0,7.56478666]
[1625165754371,5.01,2118.2,2117.0,5.01]
[1625165754473,25.6788,2118.4,2116.9,12.98283]
[1625165754571,25.6788,2118.4,2116.9,9.44238]
[1625165754873,0.08,2118.3,2116.9,9.44238]
[1625165755071,25.6788,2118.4,2116.9,9.44238]
[1625165755477,7.08178,2118.0,2116.9,9.44238]
[1625165755575,15.37258,2118.0,2116.9,9.44238]
[1625165756914,8.2908,2118.0,2116.9,9.44238]
[1625165757066,5.01,2118.0,2116.9,9.44238]
[1625165757267,35.12073,2118.4,2116.9,9.44238]
[1625165757718,35.12073,2118.4,2117.0,15.0]
[1625165757719,10.6506,2118.4,2117.0,15.0]
[1625165757816,12.55135125,2118.5,2117.7,7.07978]
[1625165757976,1.72045125,2118.5,2117.7,10.89788]
[1625165758124,1.72045125,2118.5,2117.7,18.89788]
[1625165758221,1.72045125,2118.5,2117.8,3.5386983]
[1625165758321,10.5278,2119.4,2117.9,3.53833]
[1625165758414,21.2372,2119.4,2117.9,3.68833]
[1625165758567,21.2372,2119.4,2117.9,8.4232129]
[1625165758785,21.2372,2119.4,2118.1,4.6145962]
[1625165759034,21.2372,2119.4,2118.7,7.07612]
[1625165759132,10.7094,2119.4,2118.7,10.38872]
[1625165759433,11.79805,2120.0,2118.7,10.38872]
[1625165759784,11.79805,2120.0,2118.7,3.3626]
[1625165759882,31.79805,2120.0,2118.7,3.3626]
[1625165760085,7.07689,2119.5,2118.6,1.7253]
[1625165760287,7.07689,2119.5,2118.4,9.43534]
[1625165760685,1.72045125,2120.0,2118.2,10.4892]
[1625165761029,1.72045125,2120.0,2118.3,0.23]
[1625165761088,7.07602,2119.8,2118.8,7.07559]
[1625165761484,7.07602,2119.8,2118.5,3.7473]
[1625165762541,11.72602,2119.8,2118.4,9.43534]
[1625165762688,19.72602,2119.8,2118.5,2.0]
[1625165762840,37.66,2119.8,2118.5,2.0]
[1625165762943,37.66,2119.8,2118.2,10.4892]
[1625165763092,0.1,2119.7,2118.0,20.04412]
[1625165763283,37.66,2119.8,2118.0,20.04412]
[1625165763284,39.76,2119.8,2118.0,9.43642]
[1625165763385,0.24238702,2119.6,2118.0,9.43642]
[1625165763482,9.43647,2119.5,2118.0,9.43642]
[1625165763637,2.088,2119.9,2118.0,9.43642]
[1625165763731,2.088,2119.9,2118.1,4.15]
[1625165763834,11.79805,2120.0,2118.1,4.15]
[1625165763835,11.79805,2120.0,2118.1,0.15]
[1625165763931,13.02965,2120.0,2118.1,0.15]
[1625165764236,20.1071915,2120.0,2118.1,0.15]
[1625165764388,8.3091415,2120.0,2118.1,0.1]
[1625165764573,7.07748,2119.4,2118.1,0.1]
[1625165764925,12.08748,2119.4,2118.1,0.16]
[1625165765423,5.01,2119.4,2118.1,0.16]
[1625165765553,14.44604,2119.7,2118.1,0.16]
[1625165765704,7.07748,2119.4,2118.3,9.43608]
[1625165765951,12.08748,2119.4,2118.3,9.43608]
[1625165766153,12.08748,2119.4,2118.3,14.44608]
[1625165767405,12.08748,2119.4,2118.4,7.0774]
[1625165767607,12.08748,2119.4,2118.4,12.0874]
[1625165767779,5.01,2119.4,2118.5,0.04]
[1625165767975,14.44604,2119.7,2118.5,0.04]
[1625165768180,14.44604,2119.7,2118.4,5.16]
[1625165768429,5.01,2119.7,2118.9,7.07619]
[1625165768535,12.61481177,2119.9,2118.9,7.07619]
[1625165768625,20.61481177,2119.9,2118.9,7.07619]
[1625165770731,13.53862177,2119.9,2118.9,7.07619]
[1625165771133,5.53862177,2119.9,2118.9,7.07619]
[1625165771233,5.01,2119.9,2118.9,7.07619]
[1625165771333,19.05712302,2120.0,2118.9,7.07619]
[1625165771436,7.07677,2119.7,2118.7,9.43491]
[1625165771533,12.08677,2119.7,2118.7,9.43491]
[1625165772705,5.01,2119.7,2118.7,9.43491]
[1625165772896,9.03862177,2119.9,2118.7,9.43491]
[1625165773951,16.11470177,2119.9,2118.7,9.43491]
[1625165774050,16.11470177,2119.9,2118.7,14.44491]
[1625165774150,16.11470177,2119.9,2118.7,9.43491]
[1625165774400,16.11470177,2119.9,2118.7,14.44491]
[1625165774974,9.03862177,2119.9,2118.7,14.44491]
[1625165775075,9.03862177,2119.9,2118.7,27.47091]
[1625165775076,3.5,2119.9,2118.7,27.47091]
[1625165775183,3.5,2119.9,2118.8,0.1]
[1625165775476,0.52862177,2120.0,2118.8,0.1]
[1625165775629,0.50312177,2120.0,2118.9,2.70478666]
[1625165775784,0.50312177,2120.0,2119.0,15.0]
[1625165775876,0.50312177,2120.0,2119.2,3.46]
[1625165776032,0.50312177,2120.0,2119.3,15.2]
[1625165776183,6.87,2120.1,2119.6,7.07025]
[1625165776277,6.87,2120.1,2119.8,3.53475]
[1625165776378,6.87,2120.1,2119.9,15.0]
[1625165776479,6.87,2120.1,2119.9,23.0]
[1625165776584,10.4181,2121.2,2120.0,23.05]
[1625165776681,10.9167,2121.5,2120.0,0.35]
[1625165776790,10.9167,2121.5,2120.0,5.16]
[1625165776886,10.9167,2121.5,2120.0,0.15]
[1625165776984,10.9167,2121.5,2120.0,5.16]
[1625165777084,10.9167,2121.5,2120.0,0.15]
[1625165777237,10.9167,2121.5,2120.0,12.23136]
[1625165777337,10.9167,2121.5,2120.0,7.22136]
[1625165777434,10.9167,2121.5,2120.0,12.23136]
[1625165777633,10.9167,2121.5,2120.0,7.22136]
[1625165778339,10.9167,2121.5,2120.0,0.15]
[1625165778439,16.5717,2121.4,2119.8,9.42577]
[1625165778594,36.5717,2121.4,2119.7,11.036]
[1625165778690,0.23567754,2121.3,2119.7,11.036]
[1625165778890,0.04,2121.2,2119.7,11.036]
[1625165779029,0.2690804,2121.1,2119.5,20.2689]
[1625165779281,0.30019801,2121.2,2119.5,20.2689]
[1625165779377,7.07363,2120.7,2119.5,10.1161]
[1625165779618,7.07363,2120.7,2119.2,10.1935]
[1625165779619,17.10943,2120.7,2119.2,10.1935]
[1625165779717,12.09943,2120.7,2119.4,5.01]
[1625165779818,17.10943,2120.7,2119.2,15.2035]
[1625165780321,10.56442177,2120.7,2119.2,15.2035]
[1625165780423,10.56442177,2120.7,2119.6,7.0732]
[1625165780518,10.56442177,2120.7,2119.6,12.0832]
[1625165781171,0.52862177,2120.7,2119.7,0.14]
[1625165781290,5.01,2121.0,2119.7,0.14]
[1625165781385,10.4585,2121.1,2119.7,0.14]
[1625165781487,15.4685,2121.1,2119.7,0.14]
[1625165781691,15.4685,2121.1,2120.0,7.07201]
[1625165782188,15.4185,2121.1,2120.0,7.07201]
[1625165782289,15.94712177,2121.1,2120.0,7.07201]
[1625165785095,10.4085,2121.1,2120.0,12.08201]
[1625165785193,10.4085,2121.1,2120.0,7.07201]
[1625165785294,10.4085,2121.1,2120.0,12.08201]
[1625165785642,10.4085,2121.1,2120.1,0.08]
[1625165786284,10.4085,2121.1,2119.9,22.58916]
[1625165786387,0.52862177,2121.3,2119.9,22.58916]
[1625165786489,0.52862177,2121.3,2120.5,7.07073]
[1625165787185,12.40889177,2121.8,2120.5,7.07073]
[1625165787291,5.53862177,2121.8,2120.5,7.07073]
[1625165787388,0.52862177,2121.8,2120.5,12.23073]
[1625165787539,0.52862177,2121.8,2120.6,0.14]
[1625165787637,0.52862177,2121.8,2121.1,7.06844]
[1625165787738,0.52862177,2121.8,2121.1,12.00684]
[1625165787939,0.52862177,2121.8,2121.1,14.22601244]
[1625165788178,27.57669,2122.2,2121.1,9.21601244]
[1625165788179,0.52862177,2122.1,2121.1,9.21601244]
[1625165788278,0.52862177,2122.1,2121.1,4.9384]
[1625165788831,0.52862177,2122.1,2120.9,9.42458]
[1625165789034,7.59756177,2122.1,2120.7,14.58571]
[1625165789130,7.59756177,2122.1,2120.7,9.57571]
[1625165789282,12.60756177,2122.1,2120.7,14.58571]
[1625165790435,7.59756177,2122.1,2120.7,14.58571]
[1625165790539,12.07894,2122.1,2120.7,9.57571]
[1625165790838,20.07894,2122.1,2120.7,0.15]
[1625165790943,13.01,2122.1,2120.7,0.15]
[1625165791037,33.01,2122.1,2120.7,0.15]
[1625165791235,13.01,2122.1,2120.7,0.15]
[1625165791337,5.01,2122.1,2120.7,0.15]
[1625165791486,13.01,2122.1,2120.7,0.15]
[1625165791638,8.52862177,2122.1,2120.7,0.15]
[1625165791738,13.53862177,2122.1,2120.7,0.15]
[1625165791840,7.07055,2121.5,2120.7,0.15]
[1625165792041,5.01,2121.8,2120.7,0.15]
[1625165792242,0.52862177,2122.1,2120.7,0.15]
[1625165793430,7.07002,2121.7,2120.7,7.21947]
[1625165793530,12.08002,2121.7,2120.7,12.22947]
[1625165794788,12.08002,2121.7,2120.7,7.21947]
[1625165795081,12.08002,2121.7,2120.7,12.22947]
[1625165797591,5.01,2121.7,2120.7,5.16]
[1625165797794,0.52862177,2122.1,2120.7,0.15]
[1625165797889,0.52862177,2122.1,2120.7,5.16]
[1625165798087,0.52862177,2122.1,2120.7,0.15]
[1625165799279,9.4268,2121.9,2120.7,7.21947]
[1625165799427,0.52862177,2122.1,2120.7,7.21947]
[1625165799531,0.52862177,2122.1,2120.7,12.22947]
[1625165801553,7.06972,2121.8,2120.7,12.22947]
[1625165801705,10.11502,2121.8,2120.3,9.42764]
[1625165801803,0.1,2121.7,2120.3,9.42764]
[1625165801910,20.0,2121.5,2120.0,10.8542]
[1625165802050,0.25958952,2121.4,2120.0,10.8542]
[1625165802559,1.98052719,2121.4,2120.0,10.8542]
[1625165802658,7.07277,2120.8,2120.0,10.8542]
[1625165802750,11.09507,2120.8,2119.7,9.42998]
[1625165802848,16.10507,2120.8,2119.7,9.42998]
[1625165809285,2.9,2120.6,2119.7,9.42998]
[1625165809485,7.07341,2120.3,2119.7,9.42998]
[1625165809690,10.38951,2120.3,2119.4,15.645]
[1625165809890,15.39951,2120.3,2119.4,10.635]
[1625165809987,15.39951,2120.3,2119.2,9.9794]
[1625165810339,15.39951,2120.3,2119.1,9.43033]
[1625165810556,15.39951,2120.3,2119.1,14.44033]
[1625165810860,15.39951,2120.3,2119.2,0.2]
[1625165811858,8.3261,2120.3,2119.3,9.43126]
[1625165811956,3.3161,2120.3,2119.3,9.43126]
[1625165812056,2.9,2120.6,2119.3,14.44126]
[1625165812158,7.91,2120.6,2119.3,14.44126]
[1625165812361,7.91,2120.6,2119.4,0.04]
[1625165812802,2.9,2120.6,2119.4,3.5760499]
[1625165812951,2.9,2120.6,2119.9,7.07237]
[1625165813047,2.9,2120.6,2119.9,15.48727]
[1625165813150,2.9,2120.6,2120.0,0.2]
[1625165814105,2.9,2120.6,2120.2,7.07133]
[1625165814248,2.9,2120.6,2119.9,5.16]
[1625165814497,2.9,2120.6,2119.9,0.15]
[1625165814598,2.9,2120.6,2119.9,5.16]
[1625165814796,2.9,2120.6,2119.9,0.15]
[1625165814896,2.9,2120.6,2119.9,5.16]
[1625165815035,2.9,2120.6,2119.9,0.15]
[1625165815136,2.9,2120.6,2119.9,7.22187]
[1625165815386,2.9,2120.6,2120.0,0.2]
[1625165816436,2.9,2120.6,2120.1,7.07112]
[1625165816986,2.9,2120.6,2120.1,12.08112]
[1625165817191,2.9,2120.6,2120.0,0.2]
[1625165817336,2.9,2120.6,2119.8,14.43902]
[1625165817685,2.9,2120.6,2120.0,7.07159]
[1625165818942,2.9,2120.6,2119.8,14.43902]
[1625165820082,7.91,2120.6,2119.8,9.42902]
[1625165820934,14.98205,2120.6,2119.8,9.42902]
[1625165822190,14.98205,2120.6,2119.6,9.4292]
[1625165822441,14.98205,2120.6,2119.5,2.55208091]
[1625165822695,14.98205,2120.6,2119.4,10.3223]
[1625165822893,0.23220384,2120.5,2119.4,10.3223]
[1625165822994,11.4472436,2120.6,2119.4,10.3223]
[1625165823099,3.53749,2120.4,2119.0,10.346]
[1625165823195,0.29127871,2120.3,2118.8,10.6685]
[1625165823346,13.2934,2119.9,2118.7,2.37081207]
[1625165823497,13.2934,2119.9,2118.6,10.43421608]
[1625165823593,18.54333021,2119.9,2118.6,10.43421608]
[1625165823694,9.11003021,2119.9,2118.6,10.43421608]
[1625165823897,20.06,2119.8,2118.6,0.24621608]
[1625165824055,7.9176,2119.3,2118.6,0.24621608]
[1625165824257,0.08,2119.2,2117.9,10.9306]
[1625165824403,0.26297289,2119.1,2117.9,10.9306]
[1625165824746,7.34156289,2119.1,2118.1,7.0785]
[1625165824892,7.07859,2119.1,2118.1,7.0785]
[1625165824991,12.08859,2119.1,2118.1,7.0785]
[1625165825343,12.08859,2119.1,2117.8,9.43695]
[1625165825490,0.28064648,2119.0,2117.8,9.43695]
[1625165825641,0.32064648,2119.0,2117.8,9.43695]
[1625165825839,0.28064648,2119.0,2117.8,9.43695]
[1625165826428,7.08033,2118.9,2117.9,7.07986]
[1625165826527,12.09033,2118.9,2117.9,7.07986]
[1625165827125,12.09033,2118.9,2117.9,7.02986]
[1625165828129,5.01,2118.9,2117.9,7.02986]
[1625165828381,4.0575,2119.0,2117.9,7.02986]
[1625165828571,9.0675,2119.0,2117.9,7.02986]
[1625165828772,17.0675,2119.0,2117.9,7.02986]
[1625165828972,0.08,2118.9,2117.9,7.02986]
[1625165829276,9.0675,2119.0,2117.9,7.02986]
[1625165829674,7.91,2119.0,2117.9,7.02986]
[1625165830178,15.91,2119.0,2117.8,9.43695]
[1625165830279,0.23509503,2118.9,2117.8,9.43695]
[1625165830382,0.33509503,2118.9,2117.8,9.43695]
[1625165830729,11.08076,2118.8,2117.6,7.08084]
[1625165830831,0.25045661,2118.7,2117.6,7.08084]
[1625165831378,0.25045661,2118.7,2117.5,0.02200374]
[1625165831481,0.23276002,2118.4,2117.5,0.02200374]
[1625165831632,14.2851,2118.5,2117.5,0.02200374]
[1625165831729,14.52301007,2118.5,2117.5,0.02200374]
[1625165831830,16.52301007,2118.5,2117.5,0.02200374]
[1625165831929,16.58301007,2118.5,2117.5,0.02200374]
[1625165832232,16.52301007,2118.5,2117.5,0.02200374]
[1625165832430,7.08203,2118.4,2117.5,0.02200374]
[1625165832529,5.01,2118.4,2117.5,0.02200374]
[1625165832732,7.01,2118.5,2117.5,0.02200374]
[1625165832879,10.0,2118.4,2117.5,0.02200374]
[1625165832982,2.0,2118.4,2117.5,0.02200374]
[1625165833119,10.0,2118.4,2117.5,0.02200374]
[1625165833221,0.04,2118.3,2117.5,0.02200374]
[1625165833322,4.8688,2118.3,2117.5,0.02200374]
[1625165833424,3.3,2118.0,2117.5,0.02200374]
[1625165833530,7.08282,2117.9,2117.5,0.02200374]
[1625165833671,7.12282,2117.9,2117.5,0.02200374]
[1625165833770,12.13282,2117.9,2117.5,0.02200374]
[1625165833969,5.01,2117.9,2117.5,0.02200374]
[1625165834075,8.31,2118.0,2117.5,0.02200374]
[1625165834174,3.3,2118.0,2117.5,0.02200374]
[1625165834271,8.31,2118.0,2117.5,0.02200374]
[1625165834973,16.31,2118.0,2117.5,0.02200374]
[1625165835327,4.2641,2117.9,2117.5,0.02200374]
[1625165835574,9.2741,2117.9,2117.5,0.02200374]
[1625165835673,4.2641,2117.9,2117.5,0.02200374]
[1625165835774,9.2741,2117.9,2117.5,0.02200374]
[1625165836021,0.06,2117.8,2117.5,0.02200374]
[1625165836272,9.1741,2117.9,2117.5,0.02200374]
[1625165836374,7.08346,2117.7,2117.5,0.02200374]
[1625165836477,5.01,2117.9,2117.5,0.02200374]
[1625165836576,8.31,2118.0,2117.5,0.02200374]
[1625165838307,3.3,2118.0,2117.5,0.02200374]
[1625165839110,3.3,2118.0,2117.5,3.74e-06]
[1625165839111,29.0,2117.9,2117.5,3.74e-06]
[1625165839212,29.0,2117.9,2116.4,23.4508921]
[1625165839213,52.7282,2117.9,2116.4,23.4508921]
[1625165839310,20.0,2117.8,2116.4,21.0745]
[1625165839504,0.23598437,2117.7,2116.4,21.0745]
[1625165839889,0.23598437,2117.7,2116.4,10.0185]
[1625165839948,8.23598437,2117.7,2116.1,10.2421]
[1625165840048,13.24598437,2117.7,2116.1,10.2421]
[1625165840152,0.04,2117.6,2116.1,10.2421]
[1625165840249,0.26871971,2117.5,2116.1,10.2421]
[1625165840455,7.08443,2117.5,2116.2,7.08451]
[1625165840601,12.09443,2117.5,2116.2,7.08451]
[1625165841402,12.09443,2117.5,2116.2,7.03451]
[1625165842546,5.01,2117.5,2116.2,12.04451]
[1625165842700,12.63173767,2117.8,2116.2,31.73059396]
[1625165842800,12.63173767,2117.8,2116.3,0.18]
[1625165843001,12.63173767,2117.8,2116.4,0.15]
[1625165843148,10.9108,2117.8,2116.4,0.15]
[1625165843247,10.9108,2117.8,2116.5,0.08]
[1625165843447,29.05,2117.7,2116.4,9.47608396]
[1625165843549,29.05,2117.7,2116.8,9.442]
[1625165843807,29.05,2117.7,2116.5,11.82481785]
[1625165843951,29.05,2117.7,2116.5,2.38196785]
[1625165844050,29.05,2117.7,2116.1,19.68537]
[1625165844148,4.2495,2117.6,2116.1,24.69537]
[1625165844405,4.2095,2117.6,2116.1,24.69537]
[1625165844608,9.2195,2117.6,2116.1,24.69537]
[1625165844804,9.2195,2117.6,2116.2,2.28578278]
[1625165844906,9.2195,2117.6,2116.5,7.08278]
[1625165845606,9.2195,2117.6,2116.5,12.09278]
[1625165846354,9.2195,2117.6,2116.5,14.37856278]
[1625165846455,9.2195,2117.6,2116.5,16.76836295]
[1625165847007,9.2195,2117.6,2116.5,11.75836295]
[1625165847101,9.2195,2117.6,2116.5,9.47258017]
[1625165847203,9.2195,2117.6,2116.5,7.08278]
[1625165847653,9.2195,2117.6,2116.5,12.09278]
[1625165847754,9.2195,2117.6,2116.5,7.08278]
[1625165848557,9.2195,2117.6,2116.3,9.4437]
[1625165848558,16.30316,2117.6,2116.3,9.4437]
[1625165848663,16.30316,2117.6,2116.1,28.2365411]
[1625165848664,16.30316,2117.6,2116.1,19.68537]
[1625165848810,0.14,2117.5,2116.1,19.68537]
[1625165849296,17.2195,2117.6,2116.1,19.58537]
[1625165850450,9.44635,2117.4,2116.1,19.58537]
[1625165850598,14.45635,2117.4,2116.1,19.58537]
[1625165850800,5.01,2117.4,2116.1,19.58537]
[1625165850949,5.01,2117.4,2116.1,24.59537]
[1625165851050,9.2195,2117.6,2116.1,26.98517017]
[1625165851200,18.6289,2117.7,2116.1,26.98517017]
[1625165851300,5.01,2117.6,2116.1,26.98517017]
[1625165851450,18.6289,2117.7,2116.1,26.98517017]
[1625165851749,24.8079,2117.7,2116.1,26.98517017]
[1625165851848,24.8079,2117.7,2116.1,21.97517017]
[1625165851949,0.14,2117.6,2116.1,21.97517017]
[1625165852149,22.1973,2117.7,2116.1,21.97517017]
[1625165852452,7.08385,2117.6,2116.1,21.97517017]
[1625165852553,12.09385,2117.6,2116.1,21.97517017]
[1625165853054,12.09385,2117.6,2116.1,26.98517017]
[1625165853303,12.09385,2117.6,2116.1,27.13517017]
[1625165854149,7.08385,2117.6,2116.1,27.13517017]
[1625165854401,7.08385,2117.6,2116.2,0.04]
[1625165854884,10.4979,2117.8,2116.3,2.43578278]
[1625165854972,10.4979,2117.8,2116.5,3.54095]
[1625165855072,10.5618,2117.9,2116.8,7.08296]
[1625165855073,20.6532,2117.9,2116.8,7.08296]
[1625165855272,20.6532,2117.9,2116.8,16.07656]
[1625165855374,10.0914,2117.9,2116.8,16.07656]
[1625165855471,10.0914,2117.9,2116.8,11.06656]
[1625165855735,13.651,2118.0,2116.8,11.06656]
[1625165855836,13.651,2118.0,2116.8,16.07656]
[1625165856336,13.651,2118.0,2116.8,19.6172898]
[1625165856439,13.651,2118.0,2117.2,7.08126]
[1625165856544,3.3,2118.0,2117.2,7.08126]
[1625165858959,10.38144,2118.0,2117.2,7.08126]
[1625165863863,3.3,2118.0,2117.2,7.08126]
[1625165864612,8.31,2118.0,2117.2,7.08126]
[1625165864759,3.3,2118.0,2117.2,7.08126]
[1625165864863,8.31,2118.0,2117.2,7.08126]
[1625165865712,3.3,2118.0,2117.2,7.08126]
[1625165867675,3.3,2118.0,2117.2,12.09126]
[1625165867878,3.3,2118.0,2117.3,0.08]
[1625165868432,3.3,2118.0,2117.3,2.4531335]
[1625165868532,3.3,2118.0,2117.4,15.0]
[1625165868682,10.6127,2118.7,2117.5,0.12]
[1625165868786,10.6127,2118.7,2117.7,3.53882]
[1625165868881,10.6127,2118.7,2117.7,8.58362]
[1625165868983,6.73093767,2119.0,2118.2,10.88553]
[1625165869082,5.01,2119.0,2118.2,10.88553]
[1625165869214,33.2476,2119.2,2118.2,10.88553]
[1625165869417,22.8907,2119.2,2118.2,10.88553]
[1625165869519,15.8129,2119.2,2118.2,10.88553]
[1625165870653,15.8129,2119.2,2118.2,3.8078]
[1625165870848,17.88045,2119.2,2118.2,10.88553]
[1625165871001,22.84045,2119.2,2118.2,10.88553]
[1625165871250,10.7529,2119.2,2118.2,10.88553]
[1625165871350,10.7529,2119.2,2118.2,15.89553]
[1625165871699,10.7529,2119.2,2118.2,10.88553]
[1625165872307,17.83029,2119.2,2118.2,10.88553]
[1625165872554,22.84029,2119.2,2117.9,9.43715]
[1625165872649,22.84029,2119.2,2117.9,14.44715]
[1625165874485,22.84029,2119.2,2118.1,7.07787]
[1625165874637,15.7629,2119.2,2118.1,7.07787]
[1625165876144,16.69787987,2119.2,2118.1,7.07787]
[1625165876443,23.77526987,2119.2,2118.1,7.07787]
[1625165877894,22.84029,2119.2,2118.1,7.07787]
[1625165880743,22.74029,2119.2,2118.1,7.07787]
[1625165882048,23.68149866,2119.2,2118.1,7.07787]
[1625165882598,22.74029,2119.2,2118.1,7.07787]
[1625165884404,22.74029,2119.2,2117.9,9.43715]
[1625165884607,22.74029,2119.2,2117.6,10.5835]
[1625165884705,0.1,2119.1,2117.6,10.5835]
[1625165885049,10.06959,2119.0,2117.6,10.5835]
[1625165885104,15.33068767,2119.0,2117.6,10.5835]
[1625165885202,20.34068767,2119.0,2117.6,10.5835]
[1625165885302,0.23537399,2118.9,2117.6,10.5835]
[1625165885558,7.08017,2118.3,2117.5,17.15385]
[1625165885901,7.08017,2118.3,2117.5,12.09045]
[1625165886108,5.01,2118.6,2117.5,12.09045]
[1625165886302,37.2857,2118.9,2117.6,0.16]
[1625165886654,7.07924,2118.6,2117.7,9.43899]
[1625165886903,12.08924,2118.6,2117.7,9.43899]
[1625165889768,12.08924,2118.6,2117.6,9.43912]
[1625165890365,12.08924,2118.6,2117.4,5.01]
[1625165890466,12.08924,2118.6,2117.2,15.6386]
[1625165890714,12.08924,2118.6,2117.5,7.08061]
[1625165890913,12.08924,2118.6,2117.5,12.09061]
[1625165891218,12.08924,2118.6,2117.5,7.08061]
[1625165891316,12.08924,2118.6,2117.3,9.44039]
[1625165891471,0.12,2118.5,2117.3,9.44039]
[1625165891804,8.19777,2118.8,2117.3,9.44039]
[1625165891805,21.20777,2118.8,2117.3,9.44039]
[1625165891903,21.4383596,2118.8,2117.3,9.44039]
[1625165892202,23.88655815,2118.8,2117.3,9.44039]
[1625165892405,7.08101,2118.1,2117.3,9.44039]
[1625165892655,12.09101,2118.1,2117.3,9.44039]
[1625165892757,7.08101,2118.1,2117.3,9.44039]
[1625165893105,12.09101,2118.1,2117.3,9.44039]
[1625165894409,5.01,2118.5,2117.3,9.44039]
[1625165894509,17.55145,2118.7,2117.3,14.45039]
[1625165894658,14.45145,2118.7,2117.3,5.01]
[1625165894807,14.45145,2118.7,2117.2,6.87]
[1625165895457,14.45145,2118.7,2117.2,11.88]
[1625165895559,14.45145,2118.7,2117.2,15.41984]
[1625165896061,7.08016,2118.3,2117.7,7.07977]
[1625165896494,12.09016,2118.3,2117.7,7.07977]
[1625165896596,7.08016,2118.3,2117.7,7.07977]
[1625165896694,12.09016,2118.3,2117.7,7.07977]
[1625165896943,12.09016,2118.3,2117.7,7.02977]
[1625165897995,7.08016,2118.3,2117.7,7.02977]
[1625165898096,7.07949,2118.4,2117.7,7.02977]
[1625165898297,12.08949,2118.4,2117.7,7.02977]
[1625165899693,5.01,2118.4,2117.7,7.02977]
[1625165900067,26.7996,2118.9,2117.7,7.02977]
[1625165901298,7.07918,2118.5,2117.7,7.02977]
[1625165901450,9.4389,2118.8,2117.7,7.02977]
[1625165901550,5.01,2118.5,2117.7,7.02977]
[1625165901651,5.01,2118.5,2117.0,15.50679]
[1625165901752,6.367,2118.6,2117.0,15.35679]
[1625165901849,11.377,2118.6,2117.2,6.87]
[1625165902350,7.08096,2118.0,2117.4,7.08067]
[1625165902452,10.81616,2118.0,2117.4,7.08067]
[1625165902950,3.7352,2118.0,2117.4,7.08067]
[1625165903154,3.7352,2118.0,2117.5,0.08]
[1625165903405,3.7352,2118.0,2117.6,7.08001]
[1625165904207,3.5313,2118.1,2117.6,7.08001]
[1625165904308,5.01,2118.3,2117.6,7.08001]
[1625165904508,5.01,2118.4,2117.6,7.08001]
[1625165904761,8.579,2118.6,2117.6,7.08001]
[1625165905311,8.579,2118.6,2117.2,6.87]
[1625165905408,0.08,2118.5,2117.2,6.87]
[1625165905959,7.08135,2117.9,2117.2,16.3109]
[1625165906062,16.38335,2117.9,2117.2,16.3109]
[1625165906709,4.292,2117.9,2117.2,16.3109]
[1625165907708,4.292,2117.9,2117.2,6.87]
[1625165908354,4.292,2117.9,2117.2,16.3109]
[1625165908456,4.292,2117.9,2117.2,21.3209]
[1625165908556,4.292,2117.9,2117.3,0.06]
[1625165908757,4.292,2117.9,2117.2,16.3109]
[1625165909961,16.38317,2117.9,2117.2,6.87]
[1625165910208,16.38317,2117.9,2116.7,10.9206]
[1625165910306,0.16,2117.8,2116.6,6.87]
[1625165910556,3.5,2117.7,2116.6,6.87]
[1625165910661,3.5,2117.7,2116.5,10.9241]
[1625165910758,8.51,2117.7,2116.5,10.9241]
[1625165911060,9.44496,2117.4,2116.5,18.00745]
[1625165911162,3.9465,2117.4,2116.5,18.00745]
[1625165911260,8.9565,2117.4,2116.5,18.00745]